Cogmind - Beta 16 @@@ ROGUE MODE // 2026.01.06 @ 20:28:13 Player: Skergy Result: Destroyed by GF-87F(R) with Subdweller Machine Gun Performance ------------- Evolutions (0) 0 Regions Visited (2) 400 Robots Destroyed (11) 55 Value Destroyed (271) 271 Prototype IDs (0) 0 Alien Tech Used (0) 0 Bonus (0) 0 TOTAL SCORE: 726 Bonus ------- None Cogmind --------- Core Integrity 0/250 Matter 300/300 Energy 48/100 System Corruption 0% Temperature Cool (0) Movement Walking (190) Ox1 Location -10/Subcaves Parts ------- > --- POWER (1) -------- (None) > --- PROPULSION (2) --- Aluminum Leg Aluminum Leg > --- UTILITY (2) ------ Large Storage Unit > --- WEAPON (2) ------- Flamer > --- INVENTORY (15) --- Light Ion Engine Subdweller Power Source Aluminum Leg Subdweller Monowheel Flight Unit Small Storage Unit Sensor Array Scrap Shield Peak State ------------ > --- POWER ------------ (None) > --- PROPULSION ------- Aluminum Leg Aluminum Leg > --- UTILITY ---------- Large Storage Unit > --- WEAPON ----------- Flamer Flamer > --- INVENTORY -------- Light Ion Engine Subdweller Power Source Aluminum Leg Subdweller Monowheel Flight Unit Small Storage Unit Sensor Array Scrap Shield [Rating: 8] Favorites ----------- Power Ion Engine Engine Ion Engine Propulsion Light Treads Treads Light Treads Leg Aluminum Leg Wheel Subdweller Monowheel Utility Large Storage Unit Device Seismic Detector Storage Large Storage Unit Weapon Assault Rifle Ballistic Gun Assault Rifle Special Weapon Flamer Build | -11 -10 -10 ------- Run | Yrd Mat Sub Slots Evolved . | . . . Power . | . . . Propulsion . | . . . Utility . | . . . Weapon . | . . . Parts Attached 17 | 7 3 7 Power 2 | 2 . . Engine 2 | 2 . . Core . | . . . Reactor . | . . . Propulsion 6 | 2 . 4 Treads 2 | 2 . . Leg 2 | . . 2 Wheel 2 | . . 2 Hover . | . . . Flight . | . . . Utility 4 | 1 2 1 Device 2 | . 1 1 Storage 2 | 1 1 . Processor . | . . . Hackware . | . . . Protection . | . . . Artifact . | . . . Weapon 5 | 2 1 2 Energy Gun . | . . . Energy Cannon . | . . . Ballistic Gun 3 | 2 1 . Ballistic Cannon . | . . . Launcher . | . . . Special Weapon 2 | . . 2 Impact Weapon . | . . . Slashing Weapon . | . . . Piercing Weapon . | . . . Special Melee Weapon . | . . . Unidentified Prototypes . | . . . Parts Lost 9 | . 1 8 Power 1 | . . 1 Propulsion 3 | . . 3 Utility 1 | . . 1 Weapon 4 | . 1 3 Highest Loss Streak 4 | . 1 4 To Critical Strikes 1 | . . 1 Average Backups 6 | 2 5 8 Power 1 | . 1 1 Propulsion 3 | 1 3 4 Utility 1 | . . 1 Weapon . | . . . Tool/Special . | . . . Unused Backups 3 | . . 3 Power 1 | . . 1 Propulsion 2 | . . 2 Utility . | . . . Weapon . | . . . Tool/Special . | . . . Average Slot Usage (%) 77 | . 93 66 Engine 12 | . 14 11 Treads 18 | . 28 11 Leg 3 | . . 5 Wheel 5 | . . 9 Device 4 | . 8 2 Storage 14 | . 14 14 Ballistic Gun 17 | . 27 11 Peak Build Rating 8 | 6 7 8 Average Rating 6 | 5 6 5 On Entrance 4 | . 6 7 Avg Prop Armor Cover (%) 15 | . . 15 Naked Turns . | . . . Heaviest Build 30 | 14 30 30 Greatest Support 40 | 40 40 40 Greatest Overweight (x) 2 | 2 . 1 Average Overweight (x) . | . . . Largest Inventory Capacity 15 | 8 15 15 Average Capacity 12 | 6 9 15 Most Carried 9 | 4 8 9 Average Carried 6 | 2 5 8 Final Capacity 15 | 8 15 15 Final Carried 9 | 4 7 9 Class Distribution -------------------- 100% | Mutant Dominant Class ---------------- Mutant | -10/Materials Mutant | -10/Subcaves Resources | -11 -10 -10 ----------- Run | Yrd Mat Sub Matter Collected 585 | 219 153 213 Remotely . | . . . Salvage Created 510 | . 406 104 Parts 20 | . 17 3 Haulers Intercepted . | . . . Recyclers Shooed . | . . . Parts Field Recycled . | . . . Retrieved Matter . | . . . Parts Self-Destructed 3 | . . 3 Prevented . | . . . Parts Restored . | . . . Kills | -11 -10 -10 ------- Run | Yrd Mat Sub Combat Hostiles Destroyed 9 | . 7 2 Guns 9 | . 7 2 Classes Destroyed 4 | . 3 1 Recycler 2 | . 2 . Swarmer 3 | . 3 . Grunt 4 | . 4 . Subdweller 2 | . . 2 Best Kill Streak 3 | . 3 1 Combat Bots Only 2 | . 2 1 Max Kills in Single Turn 1 | . 1 1 Gunslinging . | . . . Exploded . | . . . Melee . | . . . Uniques/NPCs Destroyed . | . . . Combat | -11 -10 -10 -------- Run | Yrd Mat Sub Hostile Shots Fired 105 | . 64 41 Missed 31 | . 21 10 Hits 74 | . 43 31 Projectile 74 | . 43 31 AOE 5 | . . 5 Critical Strikes 2 | . 1 1 Damage Taken 1295 | . 470 825 Core 252 | . 51 201 Absorbed by Shields . | . . . Core Remaining (%) 100 | 100 . . Volleys Fired 55 | . 33 22 Largest 2 | . 2 2 Hottest 200 | . 40 200 Shots Fired 88 | . 65 23 Gun 84 | . 65 19 Cannon . | . . . Launcher . | . . . Special 4 | . . 4 Kinetic 84 | . 65 19 Thermal 4 | . . 4 Explosive . | . . . Electromagnetic . | . . . Robot Hit Streak 11 | . 5 11 Robot Miss Streak 5 | . 5 1 Penetration Max . | . . . Secondary Targets 1 | . 1 . Max Gunslinging Chain 1 | . 1 . Shots Hit Robots 57 | . 36 21 Core Hits 22 | . 16 6 Critical Kills . | . . . Critical Parts Destroyed . | . . . Critical Strikes 2 | . . 2 Burn 2 | . . 2 Melee Attacks . | . . . Impact . | . . . Slashing . | . . . Piercing . | . . . Sneak Attacks . | . . . Combat Hostiles . | . . . Follow-up Attacks . | . . . Damage Inflicted 740 | . 476 264 Guns 693 | . 476 217 Cannons . | . . . Explosions . | . . . Melee . | . . . Ramming . | . . . Kinetic 693 | . 476 217 Thermal 47 | . . 47 Explosive . | . . . Electromagnetic . | . . . Impact . | . . . Slashing . | . . . Piercing . | . . . Highest Corruption . | . . . Average Corruption . | . . . Corruption Purged . | . . . Corruption Blocked . | . . . Overload Shots . | . . . Overflow Damage . | . . . Projectiles . | . . . Explosions . | . . . Melee . | . . . Knockbacks . | . . . Impact . | . . . Kinetic . | . . . Secondary . | . . . Self-Inflicted Damage . | . . . Shots . | . . . Rammed . | . . . Targets Rammed . | . . . Kicked . | . . . Crushed . | . . . Highest Temperature 20 | . 20 1 Average Temperature 5 | . 6 1 Received Heat Transfer 351 | . 225 126 Siege Activations . | . . . Martial Activations . | . . . Shielding Activations . | . . . Robots Disrupted . | . . . Combat Hostiles . | . . . Robots Corrupted . | . . . Combat Hostiles . | . . . Parts Fried . | . . . Impact Corruptions . | . . . Robots Melted . | . . . Combat Hostiles . | . . . Parts Melted . | . . . Heat Transferred 640 | . . 640 Parts Sabotaged . | . . . Parts Stolen . | . . . Parts Stripped . | . . . Power Chain Reactions . | . . . Alert | -11 -10 -10 ------- Run | Yrd Mat Sub Maximum Alert Level . | . . . Low Security (%) 100 | 100 100 . Level 1 . | . . . Level 2 . | . . . Level 3 . | . . . Level 4 . | . . . Level 5 . | . . . High Security . | . . . Max Security . | . . . Peak Influence 55 | . 55 . Initial . | . . . Average 16 | . 19 . Influence Increases 196 | . 196 . Destroy 0b10 Robot/C 140 | . 140 . Destroy 0b10 Robot/NC 10 | . 10 . Destroy Leader 30 | . 30 . Destroy Structure 1 | . 1 . Lose Combat Pursuer 15 | . 15 . Influence Decreases 196 | . 151 45 Entered New Map 22 | . . 22 Time Decay 144 | . 141 3 Lost Part 30 | . 10 20 Squads Dispatched 2 | . 2 . Investigation . | . . . Extermination . | . . . Reinforcement 2 | . 2 . Assault . | . . . Garrison . | . . . Intercept . | . . . Searches Triggered . | . . . Construction Impeded . | . . . Haulers Reinforced . | . . . Active Scanning Responses . | . . . Cargo Convoy Interrupts . | . . . Stealth | -11 -10 -10 --------- Run | Yrd Mat Sub Distress Signals 1 | . 1 . Communications Jammed . | . . . Distress Signals . | . . . Times Spotted 17 | . 11 6 Peak Tracking Total 5 | . 5 3 Tactical Retreats 2 | . 1 1 Traps | -11 -10 -10 ------- Run | Yrd Mat Sub Traps Triggered . | . . . Indirectly . | . . . Trap Hack Attempts . | . . . Triggered . | . . . Disarmed . | . . . Reprogrammed . | . . . Reused . | . . . Traps Extracted . | . . . Installed . | . . . Triggered . | . . . Machines | -11 -10 -10 ---------- Run | Yrd Mat Sub Machines Disabled . | . . . Max in Single Turn . | . . . Machines Repaired . | . . . Machines Dismantled . | . . . Machines Sabotaged . | . . . Overloaded Fab Kills . | . . . Hacking | -11 -10 -10 --------- Run | Yrd Mat Sub Machines Accessed 1 | . . 1 Terminals . | . . . Fabricators . | . . . Repair Stations . | . . . Recycling Units . | . . . Scanalyzers . | . . . Garrison Access . | . . . Total Hacks 5 | . . 5 Successful 5 | . . 5 Failed . | . . . Catastrophic . | . . . Database Lockouts . | . . . Manual . | . . . Terminals . | . . . Fabricators . | . . . Repair Stations . | . . . Recycling Units . | . . . Scanalyzers . | . . . Garrison Access . | . . . Terminal Hacks 5 | . . 5 Record 5 | . . 5 Fabricator Hacks . | . . . Repair Station Hacks . | . . . Recycling Unit Hacks . | . . . Scanalyzer . | . . . Garrison Access Hacks . | . . . Unauthorized Hacks . | . . . Terminals . | . . . Fabricators . | . . . Repair Stations . | . . . Recycling Units . | . . . Scanalyzers . | . . . Garrison Access . | . . . Data Cores Recovered . | . . . Used . | . . . Hacking Detections . | . . . Full Trace Events . | . . . Feedback Events . | . . . Feedback Blocked . | . . . Robot Schematics Acquired . | . . . Robots Built . | . . . Authchips . | . . . Time . | . . . Total Robot Build Rating . | . . . Part Schematics Acquired . | . . . Parts Built . | . . . Authchips . | . . . Time . | . . . Total Part Build Rating . | . . . Part Studies Acquired . | . . . Parts Repaired . | . . . Time . | . . . Parts Recycled . | . . . Recycled Matter . | . . . Retrieved Matter . | . . . Retrieved Components . | . . . Parts Scanalyzed . | . . . Part Schematics Acquired . | . . . Parts Damaged . | . . . Bothacking | -11 -10 -10 ------------ Run | Yrd Mat Sub Used RIF Installer . | . . . Robots Hacked . | . . . Non-combat . | . . . Combat . | . . . Robot Hacks Applied . | . . . Relay Couplers Released . | . . . Fabnet Peak Effective % . | . . . Robots Rewired . | . . . Allies Hacked . | . . . Hacks Repelled . | . . . Allies | -11 -10 -10 -------- Run | Yrd Mat Sub Total Allies . | . . . Largest Group . | . . . Highest-Rated Group . | . . . Highest-Rated Ally . | . . . Total Orders . | . . . Ally Attacks . | . . . Total Damage . | . . . Kills . | . . . Allies Corrupted . | . . . Allies Melted . | . . . Intel | -11 -10 -10 ------- Run | Yrd Mat Sub Active Infowar (turns) 317 | . 233 84 Sensors 44 | . . 44 Seismic 273 | . 233 40 Robot Analysis Total . | . . . Derelict Logs Recovered 1 | . . 1 Drone Launches . | . . . Drone Recoveries . | . . . Exploration | -11 -10 -10 ------------- Run | Yrd Mat Sub Turns Passed 1066 | 70 390 606 Spaces Moved 596 | 40 170 386 Core 8 | 8 . . Treads 216 | 32 170 14 Legs 77 | . . 77 Wheels 295 | . . 295 Hover . | . . . Flight . | . . . Fastest Speed 50 | 50 160 110 Average Speed 137 | 143 160 127 Slowest Speed 240 | 160 160 240 Overloaded Moves . | . . . Propulsion Burnouts . | . . . Robots Hopped . | . . . Potential Cave-ins . | . . . Cave-ins Triggered . | . . . Exploration Rate (%) 23 | 4 34 33 Regions Visited 2 Branch Regions 1 Pre-discovered Areas 1 | . . 1 Known Exits Taken . | . . . Unknown Exits Taken 2 | 1 1 . Scrap Searched 2 | . . 2 Spaces Dug . | . . . Terrain Destroyed . | . . . Melee . | . . . Projectile . | . . . AOE . | . . . Terrain Rammed . | . . . Walls Destroyed . | . . . Machines Disabled . | . . . Actions | -11 -10 -10 --------- Run | Yrd Mat Sub Total 746 | 49 222 475 Wait 70 | . 14 56 Move 594 | 39 169 386 Hop . | . . . Pick Up 9 | 3 3 3 Fast Attach 10 | 6 1 3 Attach 4 | . 1 3 Detach 1 | . . 1 Swap 3 | 1 1 1 Drop . | . . . Fire 55 | . 33 22 Melee . | . . . Ram . | . . . Kick . | . . . Crush . | . . . Escape Stasis . | . . . Rewire . | . . . Trap . | . . . Miscellaneous . | . . . Route ------- -11/Scrapyard -10/Materials -10/Subcaves (discovered 1 exit: [*Scr]) History --------- Turn | Location | Event 10 | -11/Scrapyard | Discovered new exit (range 16) 71 | -11/Scrapyard | Entered Materials 306 | -10/Materials | Build established: Mutant 453 | -10/Materials | Discovered new exit (range 7) 461 | -10/Materials | Entered Subcaves 462 | -10/Subcaves | Approached by a straggling Scientist 466 | -10/Subcaves | Ambushed by Subdwellers from Twisted Machinery 532 | -10/Subcaves | Lost 3 parts (1n1u1w) 798 | -10/Subcaves | Visited Clippyterm 802 | -10/Subcaves | Learned 40 Factory zone layouts 802 | -10/Subcaves | Learned Factory emergency access door positions 932 | -10/Subcaves | Learned location of Zion (-7) 932 | -10/Subcaves | Met a Zionite searching for "candidates" 938 | -10/Subcaves | Core integrity fell below 50% 940 | -10/Subcaves | Core integrity fell below 20% 972 | -10/Subcaves | Lost 4 parts (1p2n1w) 1058 | -10/Subcaves | Disturbed a concealed Subdweller 1067 | -10/Subcaves | Destroyed by GF-87F(R) with Subdweller Machine Gun Last Messages --------------- 00941_ Sub. Monowheel destroyed. 01045_ Searching scrap... 01045_ Found Flamer. 01045_ Found 52 Matter. 01046_ Acquired 30 matter. 01046_ Searching scrap... 01046_ Found Flamer. 01046_ Found Scrap Shield. 01046_ Found 52 Matter. 01048_ Acquired Scrap Shield. 01051_ Acquired Flamer. 01053_ Subatomizers dissect the Flamer. 01054_ Acquired Flamer. 01055_ Acquired 20 matter. 01058_ GF-87F(R) angrily emerges from the Twisted Machinery. 01059_ 1C-3HU(R) suffers critical hit (Burn). 01060_ 1C-3HU(R) heat damages Sub. Power Source. 01061_ Flamer destroyed. 01064_ 1C-3HU(R) suffers critical hit (Burn). Map ----- +----------------------------------------------------+ | ?????????????????????????????????????????????????? | | ?????????????????????????????????????????????????? | | ?????????????????????????????????????????????????? | | ?????????????????????????????????????????????????? | | ?????????????????????????????????????????????????? | | ?????????????????????????????????????????????????? | | ?????????????????????????????????????????????????? | | ?????????????????????????????????????????????????? | | ?????????????????????????????????????????????????? | | ?????????????????????????????????????????????????? | | ?????????????????????????????????????????????????? | | ?????????????????????????????????????????????????? | | ?????????????????????????????????????????????????? | | ?????????????????????????????????????????????????? | | ?????????????????????????????????????????????????? | | ?????????????????????????????????????????????????? | | ????????????????????????????????????###??###?????? | | ?????????????????????????????????### ### #?????? | | ???????????????????????????????### #?????? | | ??????????????????????????????## ? #??????? | | ??????????????????????????????# #? ##?????? | | ??????????????????????????????? ## ##????? | | ???????????????????????????????# ##???? | | ????????????????????????######## #???? | | ???????????????????????## R<## #????? | | ???????????????????????#<@# #" #????? | | ???????????????????????#R%# #??????????? | | ???????????????????????# <# #" ## #?????????## | | ???????????????????????#%#### ### ##????????#" | | ???????????????????????###??# ## ##???????#" | | ????????????????????????????# #### ###?????#" | | ????????????????????????????# ##??## ##????## | | ????????????????????????????###????## ##??# # | | ????????????????????????????????????# #?## # | | ????????????????????????????????????" ##?# | | ????????###????####????###????###??#" ##?## | | ???????## ##??## ###### #???## ##" #### | | ???????# #?## ## ###?# | | ??????## ### #?# "# | | ??????# ## #?## ##### | | ??????# ##?## #???## ## | | ?????## ### ##?##" ""##???## ## | | ????## "####### #??#" " #???## | | ##### ##?????# ##?###" " #???# | | # #?????## ##?## "" "##???# # | | ##?????# #### ##???## ## | | #??????# ## ## ##?## ## | | "###### #??????### ### ### # | | #????### ##????????# ## ### ## | | #??????####?????????#######?# | +----------------------------------------------------+ Best States ------------- Heat Dissipation 25 Energy Generation 10 Energy Capacity 250 Matter Stores 300 Matter Capacity 300 Sight Range 16 Robot Scan Range 14 Terrain Scan Density 10 Evasion (%) 55 Recoil Reduction 2 Item Schematics ----------------- None Robot Schematics ------------------ None Fabricated ------------ Nothing Repaired ---------- Nothing Studied --------- None Alien Tech Used ----------------- None Achievements -------------- None Challenges ------------ None Game ------ Seed LightpackFlyingEdition Manual? 0 Play Time 00:10:40 Cumulative 100.4 hours Start 2026.01.06 @ 20:05:40 End 2026.01.06 @ 20:28:13 Sessions 1 Manual Loads 0 Difficulty Rogue Special Mode None Game No. 113 Rogue 113 Adventurer 0 Explorer 0 Win Type - Total 3 Types 3/0/0/0/0/0/0/0/0/0 Lore% 61 Gallery% 49 Achievement% 34 Wizard Run 0 Options --------- Layout 1 ASCII 0 Keyboard 1 Movement Vi Keybinds 0 Fullscreen 2 Font 24/Terminus Map View 50x35 Zoom Use 0% Tactical HUD 1 Map Filters NONE Filters NONE Steam 1 RUN: 15d476ac-d64b-46e2-ab76-ea3354fd9ed6